{"text_format":"2","workbook":"xlsx","n_sheets":3,"sheets":["Лист1","Лист2","Лист3"],"not_rendered":{"charts":0,"images":0,"macros":0,"external_links":0,"defined_names":0,"comments":0,"pivot_tables":0},"unopened":[],"bounds":{"document_bytes":16777216,"sheet_cells":100000,"run_cost":"one","rows_first":2000,"rows_last":500,"rows_between":2000,"halvings":0,"cell_chars":16384,"cell_head_chars":4096},"cells_cut":0,"cells_raw":0,"read":"whole","date_system":"1900"}

{"sheet":"Лист1","index":0,"n_rows":13,"n_cols":33,"rows_kept":13,"cut":false,"hidden":false,"merged":[[3,29,4,30],[3,32,4,32],[3,19,4,20],[3,24,4,25],[3,3,4,4],[3,7,4,8],[3,5,4,6],[3,22,4,22],[3,23,4,23],[3,17,4,18],[3,16,4,16],[3,12,4,13],[3,14,4,15],[0,0,0,21],[1,0,1,21],[2,0,2,21],[3,26,4,27],[3,10,4,11]]}
["Отчет о результатах мониторинга качества финансового менеджмента,"]
["осуществляемого главными администраторами средств районного бюджета"]
["Шарангского муниципального  района за 1 полугодие 2013 год"]
["№","Наименование главного администратора средств районного бюджета","КВСР","1.7.1  Качество планирования расходов: сумма положительных внесенных изменений в бюджетную роспись в связи с уточнением ассигнований по решению Земского собрания Шарангского района о районном бюджете",null,"1.7.2  Качество планирования расходов: сумма отрицательных внесенных изменений в бюджетную роспись в связи с уточнением ассигнований по решению Земского собрания Шарангского района о районном бюджете",null,"1.8.  Качество планирования расходов: сумма внесенных положительных изменений в бюджетную роспись в связи с передвижками между кодами бюджетной классификации",null,"1. Финансовое планирование","2.4. Своевремен-ность принятия  бюджетных обязательств",null,"2.5. Качество прогнозирования кассовых расходов, кроме районных целевых программ",null,"2.6. Качество прогнозирования кассовых расходов по районным целевым программам",null,"2.7. Качество исполнения расходов: наличие просрочен - ной кредиторс-кой задолжен-ности","2.8. Уровень подготовки платежных документов",null,"2.9. Уровень  использования субсидий бюджетными  и автономными учреждениями, предоставленных на  выполнение муниципальных заданий",null,"2.Исполнение бюджета в части расходов","Наименование главного администратора средств районного бюджета","КВСР","3.2.  Полнота зачисления   платежей в районный бюджет по главному администра -тору доходов районного бюджета, объем невыясненных поступлений",null,"3.3. Отклонение кассового исполнения по доходам от прогноза по главному администратору доходов районного бюджета",null,"3.Исполнение бюджета в части доходов","4.5.Коэффициент сложности бюджетных ассигнований",null,"4. Учет и отчетность","ВСЕГО"]
["п\\п"]
[null,null,null,"%","баллы","%","баллы","%","баллы","баллы","%","баллы","%","баллы","%","баллы","баллы","%","баллы","%","баллы","баллы",null,null,"%","баллы","%","баллы","баллы","%","баллы","баллы","Количество баллов"]
[null,"1 группа",{"$nulls":20},"1 группа"]
[1,"Районный отдел образования","074",99.5,1,99.3,1,99.7,1,{"$f":"SUM(E8+G8+I8)","v":3},70.099999999999994,2,95.5,2,90.9,1,10,92,1,82.2,1,{"$f":"SUM(N8+P8+Q8+S8+U8)","v":15},"Районный отдел образования","074",0,5,null,0,{"$f":"SUM(Z8+AB8)","v":5},1480,2,{"$f":"SUM(AE8)","v":2},{"$f":"SUM(J8+V8+AC8+AF8)","v":25}]
[2,"Отдел культуры","057",null,2,null,2,100,2,{"$f":"SUM(E9+G9+I9)","v":6},51.5,1,95,1,100,2,10,97.6,2,94.6,2,{"$f":"SUM(N9+P9+Q9+S9+U9)","v":17},"Отдел культуры","057",0,5,5.7,0,{"$f":"SUM(Z9+AB9)","v":5},780,1,{"$f":"SUM(AE9)","v":1},{"$f":"SUM(J9+V9+AC9+AF9)","v":29}]
[null,"2 группа",{"$nulls":20},"2 группа"]
[1,"Администрация",487,80.400000000000006,1,null,2,99.85,1,4,13.6,1,29.8,1,63.6,2,10,93.1,1,null,null,14,"Администрация",487,0,5,-16.399999999999999,0,5,30,1,1,24]
[2,"Управление сельского хозяйства","082",null,3,null,2,99.98,2,7,53.7,3,76.400000000000006,2,41.4,1,10,94.7,2,null,null,15,"Управление сельского хозяйства","082",0,5,null,0,5,150,3,3,30]
[3,"Финансовое управление","001",99.3,2,98,1,null,3,6,38,2,88.1,3,82.7,3,10,99.6,3,null,null,19,"Финансовое управление","001",0,5,-276.7,0,5,130,2,2,32]

{"sheet":"Лист2","index":1,"n_rows":0,"n_cols":0,"rows_kept":0,"cut":false,"hidden":false,"merged":[]}

{"sheet":"Лист3","index":2,"n_rows":0,"n_cols":0,"rows_kept":0,"cut":false,"hidden":false,"merged":[]}